fUSD/lending_fUSD_20250611
["ID","MTS","AMOUNT","RATE_DAILY","PERIOD"]
[365420562,1749661855841,-490.0,0.00019506,2]
[365420563,1749661855852,-490.0,0.00019506,2]
[365420564,1749661855863,-361.24,0.00019506,2]
[365420565,1749661855874,-490.0,0.00019506,2]
[365420566,1749661855884,-490.0,0.00019506,2]
[365420567,1749661855895,-490.0,0.00019506,2]
[365420568,1749661855906,-490.0,0.00019506,2]
[365420569,1749661855918,-490.0,0.00019506,2]
[365420570,1749661855928,-490.0,0.00019506,2]
[365420571,1749661855939,-490.0,0.00019506,2]
[365420572,1749661855949,-529.15025998,0.00019506,2]
[365420573,1749661855959,-490.0,0.00019506,2]
[365420574,1749661855970,-490.0,0.00019506,2]
[365420575,1749661855984,-620.72,0.00019506,2]
[365420576,1749661855995,-420.0,0.00019506,2]
[365420577,1749661856005,-490.0,0.00019506,2]
[365420578,1749661856015,-481.15568339,0.00019506,2]
[365420579,1749661856027,-490.0,0.00019506,2]
[365420580,1749661856037,-490.0,0.00019506,2]
[365420581,1749661856047,-490.0,0.00019506,2]
[365420582,1749661856058,-276.08,0.00019506,2]
[365420583,1749661856068,-490.0,0.00019506,2]
[365420584,1749661856079,-490.0,0.00019506,2]
[365420585,1749661856089,-490.0,0.00019506,2]
[365420586,1749661856100,-490.0,0.00019506,2]
[365420587,1749661856110,-490.0,0.00019506,2]
[365420588,1749661856120,-490.0,0.00019506,2]
[365420589,1749661856131,-364.8,0.00019506,2]
[365420590,1749661856142,-490.0,0.00019506,2]
[365420591,1749661856152,-490.0,0.00019506,2]
[365420592,1749661856163,-490.0,0.00019506,2]
[365420593,1749661856173,-490.0,0.00019506,2]
[365420594,1749661856183,-490.0,0.00019506,2]
[365420595,1749661856194,-535.44,0.00019506,2]
[365420596,1749661856203,-490.0,0.00019506,2]
[365420597,1749661856213,-490.0,0.00019506,2]
[365420598,1749661856223,-490.0,0.00019506,2]
[365420599,1749661856234,-490.0,0.00019506,2]
[365420600,1749661856243,-532.6,0.00019506,2]
[365420601,1749661856253,-490.0,0.00019506,2]
[365420602,1749661856263,-490.0,0.00019506,2]
[365420603,1749661856273,-490.0,0.00019506,2]
[365420604,1749661856283,-490.0,0.00019506,2]
[365420605,1749661856294,-490.0,0.00019506,2]
[365420606,1749661856304,-557.04,0.00019506,2]
[365420607,1749661856314,-524.57,0.00019506,2]
[365420608,1749661856324,-490.0,0.00019506,2]
[365420609,1749661856335,-490.0,0.00019506,2]
[365420610,1749661856346,-777.72,0.00019506,2]
[365420611,1749661856356,-490.0,0.00019506,2]
[365420612,1749661856366,-1110.89,0.00019506,2]
[365420613,1749661856376,-490.0,0.00019506,2]
[365420614,1749661856386,-490.0,0.00019506,2]
[365420615,1749661856396,-490.0,0.00019506,2]
[365420616,1749661856406,-490.0,0.00019506,2]
[365420617,1749661856415,-490.0,0.00019506,2]
[365420618,1749661856425,-404.59273136,0.00019506,2]
[365420619,1749661856435,-490.0,0.00019506,2]
[365420620,1749661856444,-490.0,0.00019506,2]
[365420621,1749661856455,-470.0,0.00019506,2]
[365420622,1749661856464,-698.56,0.00019506,2]
[365420623,1749661856474,-572.72,0.00019506,2]
[365420624,1749661856483,-301.35900449,0.00019506,2]
[365420625,1749661856493,-490.0,0.00019506,2]
[365420626,1749661856503,-5157.49,0.00019506,2]
[365420627,1749661856512,-644.73,0.00019506,2]
[365420628,1749661856523,-470.0,0.00019506,2]
[365420629,1749661856532,-470.0,0.00019506,2]
[365420630,1749661856542,-766.85,0.00019506,2]
[365420631,1749661856552,-3044.27,0.00019506,2]
[365420632,1749661856563,-490.0,0.00019506,2]
[365420633,1749661856572,-706.93,0.00019506,2]
[365420634,1749661856582,-532.69,0.00019506,2]
[365420635,1749661856592,-490.0,0.00019506,2]
[365420636,1749661856603,-750.82,0.00019506,2]
[365420637,1749661856614,-524.13382013,0.00019506,2]
[365420638,1749661856625,-791.56,0.00019506,2]
[365420639,1749661856635,-2504.3,0.00019506,2]
[365420640,1749661856646,-490.0,0.00019506,2]
[365420641,1749661856656,-720.09,0.00019506,2]
[365420642,1749661856666,-6359.47,0.00019506,2]
[365420643,1749661856676,-490.0,0.00019506,2]
[365420644,1749661856686,-490.0,0.00019506,2]
[365420645,1749661856700,-470.0,0.00019506,2]
[365420646,1749661856710,-483.49720117,0.00019506,2]
[365420647,1749661856720,-524.42,0.00019506,2]
[365420648,1749661856731,-490.0,0.00019506,2]
[365420649,1749661856741,-783.79,0.00019506,2]
[365420650,1749661856751,-490.0,0.00019506,2]
[365420651,1749661856761,-890.39,0.00019506,2]
[365420652,1749661856773,-490.0,0.00019506,2]
[365420653,1749661856783,-697.65,0.00019506,2]
[365420654,1749661856793,-891.62,0.00019506,2]
[365420655,1749661856803,-490.0,0.00019506,2]
[365420656,1749661856814,-490.0,0.00019506,2]
[365420657,1749661856823,-490.0,0.00019506,2]
[365420658,1749661856833,-618.59,0.00019506,2]
[365420659,1749661856844,-490.0,0.00019506,2]
[365420660,1749661856854,-1342.81,0.00019506,2]
[365420661,1749661856865,-470.0,0.00019506,2]
[365420662,1749661856875,-913.55,0.00019506,2]
[365420663,1749661856886,-490.0,0.00019506,2]
[365420664,1749661856896,-817.65,0.00019506,2]
[365420665,1749661856907,-490.0,0.00019506,2]
[365420666,1749661856917,-3371.76,0.00019506,2]
[365420667,1749661856928,-490.0,0.00019506,2]
[365420668,1749661856939,-490.0,0.00019506,2]
[365420669,1749661856949,-589.73,0.00019506,2]
[365420670,1749661856960,-490.0,0.00019506,2]
[365420671,1749661856971,-490.0,0.00019506,2]
[365420672,1749661856983,-226.4,0.00019506,2]
[365420673,1749661856995,-490.0,0.00019506,2]
[365420674,1749661857008,-470.0,0.00019506,2]
[365420675,1749661857297,-490.0,0.00019506,2]
[365420676,1749661857306,-490.0,0.00019506,2]
[365420677,1749661857316,-490.0,0.00019506,2]
[365420678,1749661857326,-687.3,0.00019506,2]
[365420679,1749661857336,-1180.8,0.00019506,2]
[365420680,1749661857346,-490.0,0.00019506,2]
[365420681,1749661857355,-490.0,0.00019506,2]
[365420682,1749661857365,-1485.04,0.00019506,2]
[365420683,1749661857375,-2812.24,0.00019506,2]
[365420684,1749661857385,-541.3881775,0.00019506,2]
[365420685,1749661857394,-470.0,0.00019506,2]
[365420686,1749661857404,-992.67,0.00019506,2]
[365420687,1749661857413,-490.0,0.00019506,2]
[365420688,1749661857423,-490.0,0.00019506,2]
[365420689,1749661857432,-490.0,0.00019506,2]
[365420690,1749661857441,-531.6,0.00019506,2]
[365420691,1749661857451,-490.0,0.00019506,2]
[365420692,1749661857461,-490.0,0.00019506,2]
[365420693,1749661857470,-839.79,0.00019506,2]
[365420694,1749661857481,-734.49,0.00019506,2]
[365420695,1749661857491,-652.01,0.00019506,2]
[365420696,1749661857501,-470.0,0.00019506,2]
[365420697,1749661857510,-490.0,0.00019506,2]
[365420698,1749661857520,-724.86,0.00019506,2]
[365420699,1749661857531,-501.91,0.00019506,2]
[365420700,1749661857541,-1408.56,0.00019506,2]
[365420701,1749661857551,-490.0,0.00019506,2]
[365420702,1749661857561,-430.24957858,0.00019506,2]
[365420703,1749661857571,-457.00093178,0.00019506,2]
[365420704,1749661857580,-640.62,0.00019506,2]
[365420705,1749661857589,-1591.12,0.00019506,2]
[365420706,1749661857599,-490.0,0.00019506,2]
[365420707,1749661857609,-490.0,0.00019506,2]
[365420708,1749661857619,-490.0,0.00019506,2]
[365420709,1749661857629,-589.33,0.00019506,2]
[365420710,1749661857639,-546.8,0.00019506,2]
[365420711,1749661857648,-490.0,0.00019506,2]
[365420712,1749661857659,-942.32,0.00019506,2]
[365420713,1749661857668,-549.1,0.00019506,2]
[365420714,1749661857678,-490.0,0.00019506,2]
[365420715,1749661857688,-490.0,0.00019506,2]
[365420716,1749661857701,-490.0,0.00019506,2]
[365420717,1749661857711,-5794.97,0.00019506,2]
[365420718,1749661857721,-490.0,0.00019506,2]
[365420719,1749661857731,-490.0,0.00019506,2]
[365420720,1749661857742,-490.0,0.00019506,2]
[365420721,1749661857752,-490.0,0.00019506,2]
[365420722,1749661857762,-490.0,0.00019506,2]
[365420723,1749661857772,-470.0,0.00019506,2]
[365420724,1749661857783,-490.0,0.00019506,2]
[365420725,1749661857792,-490.0,0.00019506,2]
[365420726,1749661857802,-490.0,0.00019506,2]
[365420727,1749661857812,-490.0,0.00019506,2]
[365420728,1749661857822,-209.6,0.00019506,2]
[365420729,1749661857832,-1159.67,0.00019506,2]
[365420730,1749661857842,-490.0,0.00019506,2]
[365420731,1749661857852,-1337.03,0.00019506,2]
[365420732,1749661857861,-610.72,0.00019506,2]
[365420733,1749661857871,-470.0,0.00019506,2]
[365420734,1749661857880,-490.0,0.00019506,2]
[365420735,1749661857890,-490.0,0.00019506,2]
[365420736,1749661857900,-470.0,0.00019506,2]
[365420737,1749661857910,-490.0,0.00019506,2]
[365420738,1749661857919,-490.0,0.00019506,2]
[365420739,1749661857929,-470.0,0.00019506,2]
[365420740,1749661857938,-470.0,0.00019506,2]
[365420741,1749661857948,-490.0,0.00019506,2]
[365420742,1749661857958,-490.0,0.00019506,2]
[365420743,1749661857967,-470.0,0.00019506,2]
[365420744,1749661857978,-598.63,0.00019506,2]
[365420745,1749661857988,-630.63,0.00019506,2]
[365420746,1749661857998,-490.0,0.00019506,2]
[365420747,1749661858007,-474.05,0.00019506,2]
[365420748,1749661858017,-539.21,0.00019506,2]
[365420749,1749661858027,-490.0,0.00019506,2]
[365420750,1749661858037,-490.0,0.00019506,2]
[365420751,1749661858046,-672.97,0.00019506,2]
[365420752,1749661858056,-490.0,0.00019506,2]
[365420753,1749661858065,-702.48,0.00019506,2]
[365420754,1749661858075,-490.0,0.00019506,2]
[365420755,1749661858084,-470.0,0.00019506,2]
[365420756,1749661858094,-709.1,0.00019506,2]
[365420757,1749661858103,-336.45483035,0.00019506,2]
[365420758,1749661858113,-533.7,0.00019506,2]
[365420759,1749661858122,-770.58,0.00019506,2]
[365420760,1749661858131,-470.0,0.00019506,2]
[365420761,1749661858141,-490.0,0.00019506,2]
[365420762,1749661858151,-490.0,0.00019506,2]
[365420763,1749661858160,-490.0,0.00019506,2]
[365420764,1749661858169,-490.0,0.00019506,2]
[365420765,1749661858179,-490.0,0.00019506,2]
[365420766,1749661858188,-666.46,0.00019506,2]
[365420767,1749661858198,-490.0,0.00019506,2]
[365420768,1749661858208,-490.0,0.00019506,2]
[365420769,1749661858217,-490.0,0.00019506,2]
[365420770,1749661858227,-490.0,0.00019506,2]
[365420771,1749661858236,-7911.64,0.00019506,2]
[365420772,1749661858245,-490.0,0.00019506,2]
[365420773,1749661858255,-470.0,0.00019506,2]
[365420774,1749661858265,-178.27584835,0.00019506,2]
[365420775,1749661858274,-490.0,0.00019506,2]
[365420776,1749661858283,-490.0,0.00019506,2]
[365420777,1749661858293,-470.0,0.00019506,2]
[365420778,1749661858303,-470.0,0.00019506,2]
[365420779,1749661858312,-548.77,0.00019506,2]
[365420780,1749661858321,-490.0,0.00019506,2]
[365420781,1749661858330,-490.0,0.00019506,2]
[365420782,1749661858339,-490.0,0.00019506,2]
[365420783,1749661858349,-490.0,0.00019506,2]
[365420784,1749661858358,-490.0,0.00019506,2]
[365420785,1749661858368,-2149.14,0.00019506,2]
[365420786,1749661858377,-2227.24,0.00019506,2]
[365420787,1749661858386,-637.17,0.00019506,2]
[365420788,1749661858395,-1236.64,0.00019506,2]
[365420789,1749661858405,-490.0,0.00019506,2]
[365420790,1749661858414,-889.09,0.00019506,2]
[365420791,1749661858423,-490.0,0.00019506,2]
[365420792,1749661858433,-490.0,0.00019506,2]
[365420793,1749661858442,-577.16,0.00019506,2]
[365420794,1749661858452,-490.0,0.00019506,2]
[365420795,1749661858461,-490.0,0.00019506,2]
[365420796,1749661858471,-1394.46,0.00019506,2]
[365420797,1749661858482,-674.0,0.00019506,2]
[365420798,1749661858492,-539.12,0.00019506,2]
[365420799,1749661858502,-684.33,0.00019506,2]
[365420800,1749661858511,-1624.25,0.00019506,2]
[365420801,1749661858521,-490.0,0.00019506,2]
[365420802,1749661858531,-877.05,0.00019506,2]
[365420803,1749661858541,-590.9,0.00019506,2]
[365420804,1749661858551,-490.0,0.00019506,2]
[365420805,1749661858560,-490.0,0.00019506,2]
[365420806,1749661858570,-1824.69,0.00019506,2]
[365420807,1749661858579,-490.0,0.00019506,2]
[365420808,1749661858590,-490.0,0.00019506,2]
[365420809,1749661858600,-490.0,0.00019506,2]
[365420810,1749661858609,-490.0,0.00019506,2]
[365420811,1749661858620,-470.0,0.00019506,2]
[365420812,1749661858630,-490.0,0.00019506,2]
[365420813,1749661858639,-470.0,0.00019506,2]
[365420814,1749661858649,-989.0,0.00019506,2]
[365420815,1749661858659,-905.37,0.00019506,2]
[365420816,1749661858669,-490.0,0.00019506,2]
[365420817,1749661858679,-490.0,0.00019506,2]
[365420818,1749661858688,-573.45,0.00019506,2]
[365420819,1749661858701,-490.0,0.00019506,2]
[365420820,1749661858711,-490.0,0.00019506,2]
[365420821,1749661858721,-410.0,0.00019506,2]
[365420822,1749661858732,-490.0,0.00019506,2]
[365420823,1749661858742,-613.85,0.00019506,2]
[365420824,1749661858752,-470.0,0.00019506,2]
[365420825,1749661858762,-490.0,0.00019506,2]
[365420826,1749661858772,-470.0,0.00019506,2]
[365420827,1749661858782,-1072.07,0.00019506,2]
[365420828,1749661858792,-1012.71,0.00019506,2]
[365420829,1749661858801,-192.68867042,0.00019506,2]
[365420830,1749661858812,-485.91465972,0.00019506,2]
[365420831,1749661858821,-215.60100614,0.00019506,2]
[365420832,1749661858831,-490.0,0.00019506,2]
[365420833,1749661858840,-490.0,0.00019506,2]
[365420834,1749661858850,-900.43,0.00019506,2]
[365420835,1749661858860,-495.37,0.00019506,2]
[365420836,1749661858869,-490.0,0.00019506,2]
[365420837,1749661858879,-2037.89,0.00019506,2]
[365420838,1749661858889,-460.04607363,0.00019506,2]
[365420839,1749661858899,-470.0,0.00019506,2]
[365420840,1749661858909,-490.0,0.00019506,2]
[365420841,1749661858918,-896.42,0.00019506,2]
[365420842,1749661858928,-490.0,0.00019506,2]
[365420843,1749661858937,-604.6,0.00019506,2]
[365420844,1749661858947,-490.0,0.00019506,2]
[365420845,1749661858957,-490.0,0.00019506,2]
[365420846,1749661858966,-490.0,0.00019506,2]
[365420847,1749661858975,-490.0,0.00019506,2]
[365420848,1749661858987,-490.0,0.00019506,2]
[365420849,1749661858996,-614.83,0.00019506,2]
[365420850,1749661859006,-490.0,0.00019506,2]
[365420851,1749661859016,-1230.66,0.00019506,2]
[365420852,1749661859025,-490.0,0.00019506,2]
[365420853,1749661859036,-750.13,0.00019506,2]
[365420854,1749661859045,-490.0,0.00019506,2]
[365420855,1749661859055,-490.0,0.00019506,2]
[365420856,1749661859064,-564.71650761,0.00019506,2]
[365420857,1749661859074,-2038.55,0.00019506,2]
[365420858,1749661859084,-283.03,0.00019506,2]
[365420859,1749661859094,-303.84,0.00019506,2]
[365420860,1749661859103,-250.0,0.00019563,2]
[365420861,1749661859116,-1163.2,0.0001967,2]
[365420862,1749661859125,-1163.2,0.0001967,2]
[365420863,1749661859135,-2101.92,0.0001967,2]
[365420864,1749661859144,-500.0,0.0001967,2]
[365420865,1749661859153,-500.0,0.0001967,2]
[365420866,1749661859164,-500.0,0.0001967,2]
[365420867,1749661859173,-490.0,0.00019671,2]
[365420868,1749661859182,-490.0,0.00019671,2]
[365420869,1749661859191,-490.0,0.00019671,2]
[365420870,1749661859201,-486.24555657,0.00019671,2]
[365420871,1749661859210,-490.0,0.00019671,2]
[365420872,1749661859219,-490.0,0.00019671,2]
[365420873,1749661859230,-615.98688342,0.00019671,2]
[365420874,1749661859239,-490.0,0.00019671,2]
[365420875,1749661859249,-498.95484058,0.00019671,2]
[365420876,1749661859258,-490.0,0.00019671,2]
[365420877,1749661859268,-490.0,0.00019671,2]
[365420878,1749661859277,-490.0,0.00019671,2]
[365420879,1749661859287,-490.0,0.00019671,2]
[365420880,1749661859296,-490.0,0.00019671,2]
[365420881,1749661859305,-490.0,0.00019671,2]
[365420882,1749661859314,-197.98,0.00019671,2]
[365420883,1749661859324,-490.0,0.00019671,2]
[365420884,1749661859334,-490.0,0.00019671,2]
[365420885,1749661859343,-350.09,0.00019671,2]
[365420886,1749661859352,-490.0,0.00019671,2]
[365420887,1749661859362,-490.0,0.00019671,2]
[365420888,1749661859371,-512.27,0.00019671,2]
[365420889,1749661859381,-509.63,0.00019671,2]
[365420890,1749661859391,-490.0,0.00019671,2]
[365420891,1749661859400,-490.0,0.00019671,2]
[365420892,1749661859410,-490.0,0.00019671,2]
[365420893,1749661859419,-490.0,0.00019671,2]
[365420894,1749661859429,-305.35630656,0.00019671,2]
[365420895,1749661859440,-877.72,0.00019671,2]
[365420896,1749661859450,-490.0,0.00019671,2]
[365420897,1749661859460,-733.99,0.00019671,2]
[365420898,1749661859469,-490.0,0.00019671,2]
[365420899,1749661859480,-490.0,0.00019671,2]
[365420900,1749661859490,-490.0,0.00019671,2]
[365420901,1749661859499,-557.98,0.00019671,2]
[365420902,1749661859508,-250.0,0.00019671,2]
[365420903,1749661859518,-490.0,0.00019671,2]
[365420904,1749661859528,-490.0,0.00019671,2]
[365420905,1749661859538,-490.0,0.00019671,2]
[365420906,1749661859549,-367.25895968,0.00019671,2]
[365420907,1749661859559,-490.0,0.00019671,2]
[365420908,1749661859568,-490.0,0.00019671,2]
[365420909,1749661859578,-560.35,0.00019671,2]
[365420910,1749661859587,-490.0,0.00019671,2]
[365420911,1749661859597,-490.0,0.00019671,2]
[365420912,1749661859606,-490.0,0.00019671,2]
[365420913,1749661859676,-490.0,0.00019671,2]
[365420914,1749661859686,-535.23912968,0.00019671,2]
[365420915,1749661859698,-490.0,0.00019671,2]
[365420916,1749661859707,-490.0,0.00019671,2]
[365420917,1749661859717,-627.15,0.00019671,2]
[365420918,1749661859726,-887.4,0.00019671,2]
[365420919,1749661859738,-490.0,0.00019671,2]
[365420920,1749661859748,-490.0,0.00019671,2]
[365420921,1749661859757,-401.10560668,0.00019671,2]
[365420922,1749661859766,-490.0,0.00019671,2]
[365420923,1749661859778,-796.14,0.00019671,2]
[365420924,1749661859788,-504.12,0.00019671,2]
[365420925,1749661859798,-490.0,0.00019671,2]
[365420926,1749661859807,-490.0,0.00019671,2]
[365420927,1749661859817,-490.0,0.00019671,2]
[365420928,1749661859827,-490.0,0.00019671,2]
[365420929,1749661859836,-490.0,0.00019671,2]
[365420930,1749661859845,-490.0,0.00019671,2]
[365420931,1749661859855,-1043.27,0.00019671,2]
[365420932,1749661859865,-490.0,0.00019671,2]
[365420933,1749661859875,-490.0,0.00019671,2]
[365420934,1749661859885,-530.15,0.00019671,2]
[365420935,1749661859895,-538.88,0.00019671,2]
[365420936,1749661859904,-497.98,0.00019671,2]
[365420937,1749661859914,-470.0,0.00019671,2]
[365420938,1749661859923,-490.0,0.00019671,2]
[365420939,1749661859933,-490.0,0.00019671,2]
[365420940,1749661859942,-490.0,0.00019671,2]
[365420941,1749661859953,-924.56,0.00019671,2]
[365420942,1749661859963,-490.0,0.00019671,2]
[365420943,1749661859973,-780.45,0.00019671,2]
[365420944,1749661859984,-470.0,0.00019671,2]
[365420945,1749661859994,-588.12,0.00019671,2]
[365420946,1749661860005,-284.42,0.00019671,2]
[365420947,1749661860015,-539.52,0.00019671,2]
[365420948,1749661860025,-490.0,0.00019671,2]
[365420949,1749661860035,-384.16533011,0.00019671,2]
[365420950,1749661860046,-490.0,0.00019671,2]
[365420951,1749661860056,-490.0,0.00019671,2]
[365420952,1749661860066,-735.24,0.00019671,2]
[365420953,1749661860076,-752.01,0.00019671,2]
[365420954,1749661860086,-868.47,0.00019671,2]
[365420955,1749661860095,-490.0,0.00019671,2]
[365420956,1749661860105,-490.0,0.00019671,2]
[365420957,1749661860115,-490.0,0.00019671,2]
[365420958,1749661860125,-490.0,0.00019671,2]
[365420959,1749661860135,-483.56230647,0.00019671,2]
[365420960,1749661860145,-490.0,0.00019671,2]
[365420961,1749661860155,-1037.85,0.00019671,2]
[365420962,1749661860165,-296.52,0.00019671,2]
[365420963,1749661860174,-253.12368339,0.00019671,2]
[365420964,1749661860183,-490.0,0.00019671,2]
[365420965,1749661860192,-490.0,0.00019671,2]
[365420966,1749661860201,-490.0,0.00019671,2]
[365420967,1749661860210,-490.0,0.00019671,2]
[365420968,1749661860219,-490.0,0.00019671,2]
[365420969,1749661860228,-490.0,0.00019671,2]
[365420970,1749661860240,-490.0,0.00019671,2]
[365420971,1749661860250,-541.56,0.00019671,2]
[365420972,1749661860260,-1050.77,0.00019671,2]
[365420973,1749661860269,-490.0,0.00019671,2]
[365420974,1749661860279,-490.0,0.00019671,2]
[365420975,1749661860288,-490.0,0.00019671,2]
[365420976,1749661860298,-253.16728185,0.00019671,2]
[365420977,1749661860308,-490.0,0.00019671,2]
[365420978,1749661860317,-490.0,0.00019671,2]
[365420979,1749661860327,-490.0,0.00019671,2]
[365420980,1749661860336,-490.0,0.00019671,2]
[365420981,1749661860346,-846.21,0.00019671,2]
[365420982,1749661860356,-429.77334097,0.00019671,2]
[365420983,1749661860366,-490.0,0.00019671,2]
[365420984,1749661860375,-490.0,0.00019671,2]
[365420985,1749661860384,-510.86,0.00019671,2]
[365420986,1749661860394,-490.0,0.00019671,2]
[365420987,1749661860403,-490.0,0.00019671,2]
[365420988,1749661860413,-490.0,0.00019671,2]
[365420989,1749661860422,-528.88,0.00019671,2]
[365420990,1749661860431,-490.0,0.00019671,2]
[365420991,1749661860441,-490.0,0.00019671,2]
[365420992,1749661860450,-490.0,0.00019671,2]
[365420993,1749661860460,-203.04314155,0.00019671,2]
[365420994,1749661860470,-1204.48,0.00019671,2]
[365420995,1749661860479,-490.0,0.00019671,2]
[365420996,1749661860491,-490.0,0.00019671,2]
[365420997,1749661860500,-153.72,0.00019671,2]
[365420998,1749661860510,-551.29,0.00019671,2]
[365420999,1749661860519,-540.97,0.00019671,2]
[365421000,1749661860528,-490.0,0.00019671,2]
[365421001,1749661860538,-490.0,0.00019671,2]
[365421002,1749661860548,-490.0,0.00019671,2]
[365421003,1749661860557,-490.0,0.00019671,2]
[365421004,1749661860567,-490.0,0.00019671,2]
[365421005,1749661860577,-532.05,0.00019671,2]
[365421006,1749661860586,-490.0,0.00019671,2]
[365421007,1749661860595,-490.0,0.00019671,2]
[365421008,1749661860604,-231.24,0.00019671,2]
[365421009,1749661860614,-490.0,0.00019671,2]
[365421010,1749661860623,-553.54,0.00019671,2]
[365421011,1749661860632,-490.0,0.00019671,2]
[365421012,1749661860641,-490.0,0.00019671,2]
[365421013,1749661860650,-490.0,0.00019671,2]
[365421014,1749661860660,-490.0,0.00019671,2]
[365421015,1749661860669,-490.0,0.00019671,2]
[365421016,1749661860679,-490.0,0.00019671,2]
[365421017,1749661860690,-490.0,0.00019671,2]
[365421018,1749661860702,-517.64,0.00019671,2]
[365421019,1749661860711,-490.0,0.00019671,2]
[365421020,1749661860720,-595.7,0.00019671,2]
[365421021,1749661860730,-490.0,0.00019671,2]
[365421022,1749661860739,-680.12,0.00019671,2]
[365421023,1749661860748,-470.0,0.00019671,2]
[365421024,1749661860757,-490.0,0.00019671,2]
[365421025,1749661860769,-490.0,0.00019671,2]
[365421026,1749661860778,-490.0,0.00019671,2]
[365421027,1749661860787,-490.0,0.00019671,2]
[365421028,1749661860797,-490.0,0.00019671,2]
[365421029,1749661860806,-490.0,0.00019671,2]
[365421030,1749661860815,-490.0,0.00019671,2]
[365421031,1749661860824,-490.0,0.00019671,2]
[365421032,1749661860833,-490.0,0.00019671,2]
[365421033,1749661860843,-490.0,0.00019671,2]
[365421034,1749661860852,-490.0,0.00019671,2]
[365421035,1749661860862,-620.72,0.00019671,2]
[365421036,1749661860871,-490.0,0.00019671,2]
[365421037,1749661860880,-490.0,0.00019671,2]
[365421038,1749661860890,-490.0,0.00019671,2]
[365421039,1749661860899,-490.0,0.00019671,2]
[365421040,1749661860908,-382.38519309,0.00019671,2]
[365421041,1749661860917,-490.0,0.00019671,2]
[365421042,1749661860927,-490.0,0.00019671,2]
[365421043,1749661860936,-490.0,0.00019671,2]
[365421044,1749661860945,-490.0,0.00019671,2]
[365421045,1749661860955,-490.0,0.00019671,2]
[365421046,1749661860963,-490.0,0.00019671,2]
[365421047,1749661860973,-158.56,0.00019671,2]
[365421048,1749661860982,-488.43668508,0.00019671,2]
[365421049,1749661860992,-490.0,0.00019671,2]
[365421050,1749661861001,-490.0,0.00019671,2]
[365421051,1749661861011,-535.44,0.00019671,2]
[365421052,1749661861020,-435.19530773,0.00019671,2]
[365421053,1749661861030,-490.0,0.00019671,2]
[365421054,1749661861039,-490.0,0.00019671,2]
[365421055,1749661861049,-490.0,0.00019671,2]
[365421056,1749661861058,-532.6,0.00019671,2]
[365421057,1749661861068,-490.0,0.00019671,2]
[365421058,1749661861078,-490.0,0.00019671,2]
[365421059,1749661861087,-490.0,0.00019671,2]
[365421060,1749661861096,-490.0,0.00019671,2]
[365421061,1749661861106,-490.0,0.00019671,2]